Cogmind - Beta 13 @@@ ROGUE MODE // 2024.05.24 @ 17:43:53 Player: Don Result: Destroyed by 61-NAH(R) with Subdweller Laser Performance ------------- Evolutions (0) 0 Regions Visited (3) 600 Robots Destroyed (13) 65 Value Destroyed (289) 289 Prototype IDs (2) 40 Alien Tech Used (0) 0 Bonus (0) 0 TOTAL SCORE: 994 Bonus ------- None Cogmind --------- Core Integrity 0/250 Matter 299/300 Energy 250/250 System Corruption 0% Temperature Cool (6) Movement Walking (120) Location -10/Subcaves Parts ------- > --- POWER (1) -------- Ion Engine > --- PROPULSION (2) --- Improved Aluminum Leg Carbon-fiber Leg > --- UTILITY (2) ------ Disposable Heat Sink Seismic Detector > --- WEAPON (2) ------- EM Pulse Gun Light Assault Rifle > --- INVENTORY (5) ---- Improved Aluminum Leg Subdweller Optics Subdweller Laser Subdweller Machine Gun Ripper Peak State ------------ > --- POWER ------------ Subdweller Power Source > --- PROPULSION ------- Improved Aluminum Leg Carbon-fiber Leg > --- UTILITY ---------- Scrap Shield > --- WEAPON ----------- EM Pulse Gun Light Assault Rifle > --- INVENTORY -------- Improved Aluminum Leg Subdweller Optics Seismic Detector Particle Gun Ripper [Rating: 14] Favorites ----------- Power Ion Engine Engine Ion Engine Propulsion Improved Aluminum Leg Leg Improved Aluminum Leg Utility Disposable Heat Sink Device Disposable Heat Sink Storage Small Storage Unit Processor Improved Targeting Computer Protection Scrap Shield Weapon EM Pulse Gun Energy Gun EM Pulse Gun Ballistic Gun Light Assault Rifle Build | -11 -10 -10 -10 ------- Run | Yrd Mat Min Sub Slots Evolved . | . . . . Power . | . . . . Propulsion . | . . . . Utility . | . . . . Weapon . | . . . . Parts Attached 26 | 6 4 8 8 Power 7 | 1 1 2 3 Engine 7 | 1 1 2 3 Core . | . . . . Reactor . | . . . . Propulsion 7 | 2 2 2 1 Treads . | . . . . Leg 7 | 2 2 2 1 Wheel . | . . . . Hover . | . . . . Flight . | . . . . Utility 5 | 1 1 . 3 Device 2 | . . . 2 Storage 1 | 1 . . . Processor 1 | . 1 . . Hackware . | . . . . Protection 1 | . . . 1 Artifact . | . . . . Weapon 7 | 2 . 4 1 Energy Gun 4 | 1 . 2 1 Energy Cannon . | . . . . Ballistic Gun 3 | 1 . 2 . Ballistic Cannon . | . . . . Launcher . | . . . . Special Weapon . | . . . . Impact Weapon . | . . . . Slashing Weapon . | . . . . Piercing Weapon . | . . . . Special Melee Weapon . | . . . . Unidentified Prototypes . | . . . . Parts Lost 4 | . . 4 . Power 1 | . . 1 . Propulsion 1 | . . 1 . Utility . | . . . . Weapon 2 | . . 2 . Highest Loss Streak 3 | . . 3 . To Critical Strikes 1 | . . 1 . Average Slot Usage (%) 98 | . 100 97 98 Engine 13 | . 14 12 13 Leg 27 | . 28 26 28 Device 18 | . . . 24 Storage 3 | . 14 14 . Processor 3 | . 14 14 . Protection 1 | . . . 1 Energy Gun 14 | . 14 14 14 Ballistic Gun 14 | . 14 14 14 Naked Turns . | . . . . Heaviest Build 27 | 12 14 15 27 Greatest Support 28 | 20 23 26 28 Greatest Overweight (x) 2 | 2 . . 1 Average Overweight (x) . | . . . . Largest Inventory Capacity 8 | 8 8 8 8 Average Capacity 5 | 7 8 8 5 Most Carried 8 | 8 8 8 5 Average Carried 5 | 5 7 7 4 Final Capacity 8 | 8 8 8 5 Final Carried 8 | 6 8 5 5 Class Distribution -------------------- 68% | Mutant 31% | Scavenger-Mutant Dominant Class ---------------- Mutant | -10/Materials Scavenger-Mutant | -10/Mines Mutant | -10/Subcaves Resources | -11 -10 -10 -10 ----------- Run | Yrd Mat Min Sub Matter Collected 545 | 229 96 120 100 Remotely . | . . . . Salvage Created 344 | . 162 146 36 Parts 26 | . 9 15 2 Haulers Intercepted . | . . . . Recyclers Shooed 1 | . 1 . . Parts Field Recycled . | . . . . Retrieved Matter . | . . . . Parts Self-Destructed 17 | . . . 17 Prevented . | . . . . Kills | -11 -10 -10 -10 ------- Run | Yrd Mat Min Sub Combat Hostiles Destroyed 12 | . 5 6 1 Guns 11 | . 4 6 1 AOE 1 | . 1 . . Classes Destroyed 4 | . 3 . 1 Operator 1 | . 1 . . Swarmer 6 | . 3 3 . Grunt 4 | . 2 2 . Subdweller 1 | . . . 1 Best Kill Streak 5 | . 5 2 1 Combat Bots Only 5 | . 5 2 1 Max Kills in Single Turn 1 | . 1 1 1 Gunslinging . | . . . . Exploded 1 | . 1 . . Melee . | . . . . Uniques/NPCs Destroyed 1 | . . 1 . YI-UF0 (-10/Mines) Combat | -11 -10 -10 -10 -------- Run | Yrd Mat Min Sub Hostile Shots Fired 106 | . 38 56 12 Missed 31 | . 13 14 4 Damage Taken 1188 | . 276 696 216 Core 261 | . 88 140 33 Absorbed by Shields . | . . . . Core Remaining (%) 100 | 100 . . . Volleys Fired 43 | . 21 19 3 Largest 2 | . 2 2 2 Hottest 85 | . 60 85 60 Shots Fired 84 | . 42 38 4 Gun 84 | . 42 38 4 Cannon . | . . . . Launcher . | . . . . Special . | . . . . Kinetic 41 | . 21 19 1 Thermal 18 | . . 18 . Explosive . | . . . . Electromagnetic 25 | . 21 1 3 Robot Hit Streak 10 | . 10 5 7 Robot Miss Streak 4 | . 4 4 . Penetration Max . | . . . . Secondary Targets . | . . . . Shots Hit Robots 46 | . 24 20 2 Core Hits 18 | . 7 10 1 Critical Kills 1 | . . 1 . Critical Parts Destroyed . | . . . . Critical Strikes 3 | . 1 2 . Burn 1 | . . 1 . Destroy 1 | . . 1 . Corrupt 1 | . 1 . . Melee Attacks . | . . . . Impact . | . . . . Slashing . | . . . . Piercing . | . . . . Sneak Attacks . | . . . . Combat Hostiles . | . . . . Follow-up Attacks . | . . . . Damage Inflicted 681 | . 370 291 20 Guns 597 | . 286 291 20 Cannons . | . . . . Explosions 84 | . 84 . . Melee . | . . . . Ramming . | . . . . Kinetic 229 | . 129 90 10 Thermal 285 | . 84 201 . Explosive . | . . . . Electromagnetic 167 | . 157 . 10 Impact . | . . . . Slashing . | . . . . Piercing . | . . . . Highest Corruption . | . . . . Average Corruption . | . . . . Corruption Purged . | . . . . Corruption Blocked . | . . . . Overload Shots . | . . . . Overflow Damage . | . . . . Projectiles . | . . . . Explosions . | . . . . Melee . | . . . . Knockbacks . | . . . . Impact . | . . . . Kinetic . | . . . . Secondary . | . . . . Self-Inflicted Damage 53 | . 53 . . Shots 1 | . 1 . . Rammed . | . . . . Targets Rammed . | . . . . Kicked . | . . . . Crushed . | . . . . Highest Temperature 216 | . 42 216 . Average Temperature 81 | . 22 95 . Received Heat Transfer 87 | . 30 36 21 Siege Activations . | . . . . Robots Corrupted . | . . . . Combat Hostiles . | . . . . Parts Fried 2 | . 2 . . Impact Corruptions . | . . . . Robots Melted . | . . . . Combat Hostiles . | . . . . Parts Melted 1 | . . 1 . Heat Transferred 605 | . 50 555 . Parts Sabotaged . | . . . . Parts Stolen . | . . . . Parts Stripped . | . . . . Power Chain Reactions 1 | . 1 . . Alert | -11 -10 -10 -10 ------- Run | Yrd Mat Min Sub Peak Influence 181 | . 145 181 . Initial 56 | . . 56 . Average 100 | . 79 144 . Maximum Alert Level . | . . . . Low Security (%) 100 | 100 100 100 . Level 1 . | . . . . Level 2 . | . . . . Level 3 . | . . . . Level 4 . | . . . . Level 5 . | . . . . High Security . | . . . . Max Security . | . . . . Squads Dispatched . | . . . . Investigation . | . . . . Extermination . | . . . . Reinforcement . | . . . . Assault . | . . . . Garrison . | . . . . Intercept . | . . . . Searches Triggered . | . . . . Construction Impeded . | . . . . Haulers Reinforced . | . . . . Active Scanning Responses . | . . . . Cargo Convoy Interrupts . | . . . . Stealth | -11 -10 -10 -10 --------- Run | Yrd Mat Min Sub Distress Signals . | . . . . Communications Jammed . | . . . . Distress Signals . | . . . . Times Spotted 32 | . 7 6 19 Peak Tracking Total 6 | . 3 3 6 Tactical Retreats . | . . . . Traps | -11 -10 -10 -10 ------- Run | Yrd Mat Min Sub Traps Triggered . | . . . . Indirectly . | . . . . Trap Hack Attempts . | . . . . Triggered . | . . . . Disarmed . | . . . . Reprogrammed . | . . . . Reused . | . . . . Traps Extracted . | . . . . Installed . | . . . . Triggered . | . . . . Machines | -11 -10 -10 -10 ---------- Run | Yrd Mat Min Sub Machines Disabled 1 | . . 1 . Max in Single Turn 1 | . . 1 . Machines Repaired . | . . . . Machines Dismantled . | . . . . Machines Sabotaged . | . . . . Overloaded Fab Kills . | . . . . Hacking | -11 -10 -10 -10 --------- Run | Yrd Mat Min Sub Machines Accessed 2 | . 2 . . Terminals 2 | . 2 . . Fabricators . | . . . . Repair Stations . | . . . . Recycling Units . | . . . . Scanalyzers . | . . . . Garrison Access . | . . . . Total Hacks 3 | . 3 . . Successful 3 | . 3 . . Failed . | . . . . Catastrophic . | . . . . Database Lockouts . | . . . . Manual . | . . . . Terminals 3 | . 3 . . Fabricators . | . . . . Repair Stations . | . . . . Recycling Units . | . . . . Scanalyzers . | . . . . Garrison Access . | . . . . Terminal Hacks 3 | . 3 . . Prototype ID Bank 1 | . 1 . . Alert Level 1 | . 1 . . Zone Layout 1 | . 1 . . Fabricator Hacks . | . . . . Repair Station Hacks . | . . . . Recycling Unit Hacks . | . . . . Scanalyzer . | . . . . Garrison Access Hacks . | . . . . Unauthorized Hacks . | . . . . Terminals . | . . . . Fabricators . | . . . . Repair Stations . | . . . . Recycling Units . | . . . . Scanalyzers . | . . . . Garrison Access . | . . . . Data Cores Recovered 1 | . 1 . . Used 1 | . 1 . . Hacking Detections . | . . . . Full Trace Events . | . . . . Feedback Events . | . . . . Feedback Blocked . | . . . . Robot Schematics Acquired . | . . . . Robots Built . | . . . . Authchips . | . . . . Time . | . . . . Total Robot Build Rating . | . . . . Part Schematics Acquired . | . . . . Parts Built . | . . . . Authchips . | . . . . Time . | . . . . Total Part Build Rating . | . . . . Parts Repaired . | . . . . Time . | . . . . Parts Recycled . | . . . . Recycled Matter . | . . . . Retrieved Matter . | . . . . Retrieved Components . | . . . . Parts Scanalyzed . | . . . . Part Schematics Acquired . | . . . . Parts Damaged . | . . . . Bothacking | -11 -10 -10 -10 ------------ Run | Yrd Mat Min Sub Used RIF Installer . | . . . . Robots Hacked . | . . . . Non-combat . | . . . . Combat . | . . . . Robot Hacks Applied . | . . . . Relay Couplers Released . | . . . . Fabnet Peak Effective % . | . . . . Robots Rewired . | . . . . Allies Hacked . | . . . . Hacks Repelled . | . . . . Allies | -11 -10 -10 -10 -------- Run | Yrd Mat Min Sub Total Allies . | . . . . Largest Group . | . . . . Highest-Rated Group . | . . . . Highest-Rated Ally . | . . . . Total Orders . | . . . . Ally Attacks . | . . . . Total Damage . | . . . . Kills . | . . . . Allies Corrupted . | . . . . Allies Melted . | . . . . Intel | -11 -10 -10 -10 ------- Run | Yrd Mat Min Sub Robot Analysis Total . | . . . . Derelict Logs Recovered 2 | . . 1 1 Drone Launches . | . . . . Drone Recoveries . | . . . . Exploration | -11 -10 -10 -10 ------------- Run | Yrd Mat Min Sub Turns Passed 2183 | 62 244 263 1614 Spaces Moved 1580 | 42 128 158 1252 Core 20 | 20 . . . Treads . | . . . . Legs 1560 | 22 128 158 1252 Wheels . | . . . . Hover . | . . . . Flight . | . . . . Fastest Speed 50 | 50 120 120 120 Average Speed 120 | 108 120 120 120 Slowest Speed 190 | 150 120 120 190 Overloaded Moves . | . . . . Propulsion Burnouts . | . . . . Robots Hopped . | . . . . Cave-ins Triggered . | . . . . Exploration Rate (%) 31 | 3 33 35 56 Regions Visited 3 Branch Regions 2 Pre-discovered Areas 2 | . . 1 1 Known Exits Taken . | . . . . Unknown Exits Taken 3 | 1 1 1 . Scrap Searched . | . . . . Spaces Dug . | . . . . Terrain Destroyed 3 | . 3 . . Melee . | . . . . Projectile . | . . . . AOE 3 | . 3 . . Terrain Rammed . | . . . . Walls Destroyed . | . . . . Machines Disabled . | . . . . Actions | -11 -10 -10 -10 --------- Run | Yrd Mat Min Sub Total 1790 | 58 180 196 1356 Wait 93 | . 11 6 76 Move 1577 | 41 127 157 1252 Hop . | . . . . Pick Up 28 | 11 9 2 6 Fast Attach 5 | 1 . 1 3 Attach 13 | 5 1 5 2 Detach . | . . . . Swap 8 | . 3 2 3 Drop 23 | . 8 4 11 Fire 43 | . 21 19 3 Melee . | . . . . Ram . | . . . . Kick . | . . . . Crush . | . . . . Escape Stasis . | . . . . Rewire . | . . . . Trap . | . . . . Miscellaneous . | . . . . Route ------- -11/Scrapyard -10/Materials -10/Mines (discovered 2 exits: [*Mat] / [*Sub]) -10/Subcaves History --------- Turn | Location | Event 13 | -11/Scrapyard | Discovered new exit (range 16) 63 | -11/Scrapyard | Entered Materials 287 | -10/Materials | Discovered new exit (range 16) 307 | -10/Materials | Entered Mines 329 | -10/Mines | Core integrity fell below 50% 332 | -10/Mines | Build established: Mutant 379 | -10/Mines | Learned location of Mines (-9) 485 | -10/Mines | A weapon hastily lodged in a ceiling crevice suddenly fell to the ground 531 | -10/Mines | Discovered new exit (range 14) 537 | -10/Mines | Discovered new exit (range 12) 542 | -10/Mines | Core integrity fell below 20% 549 | -10/Mines | Destroyed YI-UF0 570 | -10/Mines | Entered Subcaves 574 | -10/Subcaves | Lost 3 parts (1p1n1w) 711 | -10/Subcaves | Ambushed by swarm of Subdwellers 1037 | -10/Subcaves | Build established: Scavenger-Mutant 1466 | -10/Subcaves | Ambushed by Subdwellers from Twisted Machinery 1581 | -10/Subcaves | Shifting Twisted Machinery released Mak. Axe 1609 | -10/Subcaves | Learned location of Storage (-8) 1617 | -10/Subcaves | Build established: Mutant 2152 | -10/Subcaves | Ambushed by Subdwellers from Twisted Machinery 2184 | -10/Subcaves | Destroyed by 61-NAH(R) with Subdweller Laser Last Messages --------------- 01333_ Subatomizers dissect the Lgt. Ion Engine. 01573_ Subatomizers dissect the Sub. Power Source. Mak. Axe falls loose from the Twisted Machinery. 01609_ Acquired derelict log, extracted data. World map updated: -8/Storage. 01653_ 7H-09S(R) destroyed. 01653_ HV Slug penetrates L9-0DI(R). 01653_ L9-0DI(R) knocked back. 01655_ L9-0DI(R) destroyed. 01862_ Subatomizers dissect the Sub. Power Source. 01946_ 7G-DZP(z): "She is not going to be happy we haven't found any suitable candidates yet." 02152_ 3F-S00(R) emerges from the Twisted Machinery. 02156_ HV Slug penetrates Twisted Machinery. 02163_ PX-T0N(h) destroyed. 02182_ 4V-M70(R) destroyed. Map ----- +----------------------------------------------------+ | ???????????# #????????? | | ???????????? #### ##### #?????????? | | ?????????????????#####????# #####?????????? | | ??????????????????????????# ##?????????????? | | ??????????????????????????## ##??????????????? | | ????????????????????????#### #???????????????? | | ????????????????????????# ##???????????????? | | ????????????????????????# ##????????????????? | | ??????????? ???????????## #?????????????????? | | ???????????# ?????????# ##????????????????? | | ???????????? ????????# #????????????????? | | ????????????? ??????## ##????????????????? | | ?????????????# ???#### ##?????????????????? | | ?????????????# ??# ##??????????????????? | | ?????????????# ??# ##???????????????????? | | ??????????????# ### ##????????????????????? | | ??????????????# # ####?????????????????????? | | ??????????????# ##????????????????????????? | | ??????????????# ##????????????????????????? | | ??????????????# # ##???????????????????????? | | ??????????????##?## #####???????????????????? | | ??????????????????# ### #???????????????????? | | ??????????????????# #### #????####???????????? | | ??????????????????## # #????## #???????????? | | ??????????????????# g#???## #???????????? | | ??????????????????## # #@ ##### ###?????????? | | ??????????????????# # ## ##????????? | | ??????????????????# #????????? | | ??????????????????## #????????? | | ??????????????????# # # # ##???????? | | ??????????????????######### [R* #???????? | | ??????????????????????????## &### #???????? | | ???????????????????????????#########?## #???????? | | ??????????????????????????????????????# #???????? | | ??????????????????????????????????????# %#???????? | | ?????????????????????????????????????? #???????? | | ??????????????????????????????????????# #???????? | | ??????????????????????????????????????#" #???????? | | ??????????????????????????????????????# ##???????? | | ??????????????????????????????????????" #????????? | | ??????????????????????????????????????" #????????? | | ??????????????????????????????????????" #????????? | | ?????????????????????????????????????? ?????????? | | ?????????????????????????????????????? ?????????? | | ??????????????????????????????????????" ?????????? | | ???????????????????????????????????????"?????????? | | ?????????????????????????????????????????????????? | | ?????????????????????????????????????????????????? | | ?????????????????????????????????????????????????? | | ?????????????????????????????????????????????????? | +----------------------------------------------------+ Best States ------------- Heat Dissipation 25 Coolant Potential 50 Energy Generation 15 Energy Capacity 250 Matter Stores 300 Matter Capacity 300 Sight Range 16 Terrain Scan Density 10 Armor Coverage 800 Evasion (%) 55 Targeting Accuracy 6 Item Schematics ----------------- None Robot Schematics ------------------ None Fabricated ------------ Nothing Alien Tech Used ----------------- None Achievements -------------- None Challenges ------------ None Game ------ Seed QuantumReflectivePrototype Manual? 0 Play Time 00:26:53 Cumulative 22.4 hours Start 2024.05.24 @ 16:19:24 End 2024.05.24 @ 17:43:53 Sessions 5 Manual Loads 0 Difficulty Rogue Special Mode None Game No. 9 Rogue 8 Adventurer 1 Explorer 0 Win Type - Total 0 Types 0/0/0/0/0/0/0/0/0 Lore% 2 Gallery% 24 Achievement% 20 Wizard Run 0 Options --------- Layout 2 ASCII 0 Keyboard 0 Movement Mouse Keybinds 0 Fullscreen 1 Font 32/SmallcapsGlow Map View 50x44 Zoom Use 0% Tactical HUD 1 Map Filters NONE Filters NONE Steam 1 RUN: 96c55317-bacb-4de5-88ef-17ff6f5c43c0